bitfinex/quotes_ETHUSD_20251224
["timestamp","ask_amount","ask_price","bid_price","bid_amount"]
[1766589399299,0.97,2915.6,2914.9,0.835]
[1766589399503,0.97,2915.4,2914.9,0.835]
[1766589400090,0.97,2915.4,2914.4,3.43116334]
[1766589400289,0.97,2915.4,2914.7,3.43088025]
[1766589400592,0.97,2915.4,2914.8,3.43075419]
[1766589400769,0.97,2915.4,2914.9,0.835]
[1766589402802,0.97,2915.4,2915.0,0.835]
[1766589403394,0.97,2915.3,2915.0,0.835]
[1766589403591,0.97,2915.2,2914.5,3.46540073]
[1766589403903,0.97,2915.2,2914.6,1.18154007]
[1766589404104,0.97,2915.2,2914.7,0.03430884]
[1766589405304,0.97,2915.6,2914.7,0.03430884]
[1766589405603,0.97,2915.6,2914.8,3.43076711]
[1766589405804,0.97,2915.5,2914.9,0.86930649]
[1766589406309,0.97,2915.5,2914.9,1.29931385]
[1766589406488,0.97,2915.5,2914.9,0.86930649]
[1766589407622,0.97,2915.5,2914.9,4.2999475]
[1766589407822,0.97,2915.5,2915.0,0.835]
[1766589410099,0.97,2915.5,2914.9,0.03430649]
[1766589410299,0.97,2915.5,2914.9,4.26563471]
[1766589410499,0.97,2915.5,2915.0,0.46086878]
[1766589411257,0.97,2915.5,2915.0,0.03430531]
[1766589411535,0.97,2915.4,2914.5,0.002]
[1766589411733,0.97,2915.2,2914.2,3.43141345]
[1766589412049,0.97,2915.0,2914.2,3.46572818]
[1766589412432,3.43024263,2915.3,2914.3,0.03631355]
[1766589412639,0.97,2915.4,2914.4,1.52492005]
[1766589412975,0.97,2915.4,2914.5,0.0343112]
[1766589414126,3.43017871,2915.3,2914.5,0.0343112]
[1766589414332,0.97,2915.2,2914.5,0.0343112]
[1766589414955,0.97,2915.1,2914.5,0.0343112]
[1766589415148,0.97,2915.1,2914.3,0.002]
[1766589416041,0.97,2915.1,2914.2,0.03431473]
[1766589416246,1.62403574,2915.2,2914.2,3.43141495]
[1766589416247,0.97,2914.9,2914.2,3.43141495]
[1766589416446,0.97,2915.8,2914.2,6.89720315]
[1766589416654,0.97,2915.6,2914.3,6.61684351]
[1766589416826,0.97,2915.6,2914.4,0.86931237]
[1766589417927,0.97,2915.6,2914.4,0.03431237]
[1766589418127,0.97,2915.4,2914.5,3.43112026]
[1766589418430,0.97,2915.2,2914.4,3.43120617]
[1766589418636,0.97,2915.2,2914.5,0.0343112]
[1766589418836,0.97,2915.2,2914.5,0.8693112]
[1766589419434,0.97,2915.2,2914.5,0.0343112]
[1766589419626,0.97,2915.2,2913.9,3.4318064]
[1766589419827,0.97,2915.2,2914.1,3.43152729]
[1766589420030,0.97,2915.2,2914.2,3.46567974]
[1766589420238,4.40033045,2915.2,2914.2,0.03431473]
[1766589420440,4.40033045,2915.2,2914.1,0.03431591]
[1766589420760,0.97,2915.1,2914.3,3.43135572]
[1766589420950,0.97,2915.1,2914.4,0.03431237]
[1766589421152,0.97,2915.1,2914.5,0.002]
[1766589422157,3.43041711,2915.1,2914.5,0.002]
[1766589422366,0.9253,2915.0,2914.5,0.002]
[1766589426766,0.9253,2915.4,2914.5,0.002]
[1766589426966,0.001,2915.5,2914.6,0.68644353]
[1766589427175,0.001,2915.5,2914.7,0.836]
[1766589427347,0.9263,2915.5,2914.7,0.836]
[1766589427746,0.001,2915.5,2914.7,0.836]
[1766589428075,0.001,2915.9,2914.7,0.836]
[1766589428076,0.001,2915.9,2914.8,0.03430767]
[1766589428454,0.9263,2915.9,2914.8,0.03430767]
[1766589428882,0.9263,2915.9,2914.9,6.86129884]
[1766589429065,0.9263,2915.9,2915.0,0.72386596]
[1766589429261,0.9263,2915.9,2915.1,0.836]
[1766589429463,0.9263,2915.9,2915.2,0.03430296]
[1766589429873,0.001,2916.0,2915.2,0.03430296]
[1766589430074,0.001,2916.4,2915.3,0.03430178]
[1766589430277,0.001,2916.4,2915.1,0.93477552]
[1766589430278,0.001,2916.4,2915.2,0.03430296]
[1766589430584,0.001,2916.9,2915.5,0.09877552]
[1766589430757,0.001,2916.9,2915.6,1.49933123]
[1766589430956,0.001,2916.9,2915.7,10.28912439]
[1766589431157,0.001,2916.9,2915.8,0.0342959]
[1766589431677,0.001,2917.1,2915.8,0.0342959]
[1766589431873,0.9263,2917.1,2915.9,0.96907024]
[1766589433090,0.001,2917.3,2916.1,0.09877552]
[1766589433386,0.9263,2917.6,2916.3,0.09877552]
[1766589433608,0.9263,2917.6,2916.4,0.87028884]
[1766589435005,0.9263,2917.6,2916.5,6.8575347]
[1766589435195,0.9263,2917.6,2916.6,0.03428649]
[1766589435393,4.35377718,2917.6,2916.6,0.03428649]
[1766589435585,4.35377718,2917.6,2916.7,0.68644353]
[1766589435901,0.9263,2917.6,2916.8,0.03428414]
[1766589436119,0.9263,2917.6,2916.9,0.836]
[1766589436306,0.9263,2917.6,2917.0,0.03428179]
[1766589439307,0.001,2917.6,2917.0,0.03428179]
[1766589439476,0.9253,2917.5,2917.0,0.03428179]
[1766589439877,0.9253,2917.5,2916.9,0.03428297]
[1766589440376,3.42764746,2917.5,2916.9,0.03428297]
[1766589440579,0.9253,2917.4,2916.9,0.03428297]
[1766589441310,0.9253,2917.4,2916.8,4.26432615]
[1766589441613,0.9253,2917.4,2916.9,0.03428297]
[1766589441979,0.9253,2917.4,2916.8,0.836]
[1766589442382,0.9253,2917.4,2916.6,0.836]
[1766589442383,0.9253,2917.3,2916.6,0.836]
[1766589442887,0.9253,2917.3,2916.7,0.03428532]
[1766589443619,0.43539743,2917.4,2916.8,3.42835557]
[1766589443815,0.9263,2917.9,2916.9,6.89087729]
[1766589444114,0.9253,2918.3,2917.0,0.836]
[1766589444290,3.42709643,2918.8,2917.1,0.03428062]
[1766589444487,0.001,2918.8,2917.3,6.19155429]
[1766589444691,0.001,2918.8,2917.7,0.09877552]
[1766589444894,0.001,2918.8,2917.8,0.87027239]
[1766589445296,0.9253,2918.7,2917.8,0.87027239]
[1766589445924,0.9253,2918.7,2917.9,6.85424448]
[1766589446128,0.001,2918.8,2918.0,0.03427004]
[1766589446323,0.001,2918.8,2918.0,0.80672149]
[1766589446515,0.001,2918.8,2918.1,0.836]
[1766589446696,0.001,2918.8,2918.2,0.03426769]
[1766589447724,0.9253,2918.7,2917.4,4.046776]
[1766589447930,0.9253,2918.5,2917.5,4.26356739]
[1766589448127,0.9253,2918.5,2917.6,0.48827228]
[1766589448517,0.9263,2918.8,2917.7,0.03427357]
[1766589449499,4.35237347,2918.8,2917.7,0.03427357]
[1766589449899,0.9253,2918.7,2917.8,3.4272397]
[1766589450131,0.9253,2918.7,2917.9,0.38042255]
[1766589450432,0.9253,2918.7,2917.9,1.18215133]
[1766589451596,0.9253,2918.7,2918.0,0.03427004]
[1766589451997,0.9253,2918.7,2917.9,0.34615133]
[1766589452327,0.9493,2918.6,2917.6,3.91568881]
[1766589452512,0.9493,2918.6,2917.6,4.75168881]
[1766589452711,0.9493,2918.6,2917.7,3.42735051]
[1766589452914,0.9493,2918.6,2917.6,1.32427228]
[1766589453102,0.9493,2918.6,2917.9,3.42708416]
[1766589453302,0.9493,2918.5,2918.0,0.03427004]
[1766589453815,0.9493,2918.5,2917.9,3.46138533]
[1766589454833,0.9493,2918.5,2917.9,0.03427122]
[1766589455202,0.98360831,2918.4,2916.9,3.52704912]
[1766589455399,0.9493,2918.2,2917.4,3.42770281]
[1766589455728,0.98360831,2918.1,2917.5,0.03427592]
[1766589455933,0.98360831,2918.1,2916.9,0.002]
[1766589456103,0.9493,2918.0,2916.9,0.002]
[1766589456308,0.9493,2917.8,2916.9,0.002]
[1766589456630,0.9493,2917.6,2916.9,0.002]
[1766589456822,1.03250831,2917.5,2916.9,0.002]
[1766589457024,1.03250831,2917.5,2916.9,0.03628297]
[1766589457208,1.03250831,2917.5,2916.9,0.002]
[1766589457826,0.9982,2917.4,2916.9,0.002]
[1766589458009,0.9982,2917.2,2916.3,3.4289146]
[1766589458216,0.03430831,2917.1,2916.6,3.42861703]
[1766589458405,0.9982,2917.3,2916.7,0.03428532]
[1766589458731,0.841,2917.6,2916.8,3.4284147]
[1766589458920,0.09977552,2918.8,2916.9,0.38055297]
[1766589458921,0.9982,2918.1,2916.9,0.38055297]
[1766589459126,0.03430831,2918.0,2917.0,0.836]
[1766589459323,0.9982,2918.0,2917.1,0.03428062]
[1766589459504,1.8392,2918.4,2917.1,0.03428062]
[1766589459702,1.03250831,2918.3,2917.1,0.03428062]
[1766589459900,1.03250831,2918.3,2917.2,0.836]
[1766589460128,1.03250831,2918.3,2916.9,0.44504552]
[1766589460337,1.03250831,2918.3,2917.2,0.836]
[1766589460510,0.9982,2918.3,2917.3,0.03427827]
[1766589460702,0.9982,2918.3,2917.4,3.4277096]
[1766589460703,0.9982,2918.2,2917.4,3.4277096]
[1766589460910,1.03250831,2918.1,2917.5,0.03427592]
[1766589462028,1.03250831,2918.1,2917.4,3.85750839]
[1766589462735,8.31e-06,2918.1,2917.4,3.85750839]
[1766589463033,0.9982,2918.5,2917.5,0.03427592]
[1766589463240,0.9982,2918.5,2917.6,0.836]
[1766589463536,0.9982,2918.5,2917.7,0.03427357]
[1766589463735,0.001,2918.3,2917.7,0.03427357]
[1766589463939,0.9992,2918.3,2917.7,0.03427357]
[1766589464241,0.9982,2918.2,2917.4,0.836]
[1766589464813,0.9982,2918.0,2916.9,0.03628297]
[1766589465116,0.9982,2918.0,2917.0,0.836]
[1766589465738,0.9982,2917.9,2916.9,0.002]
[1766589466937,0.9982,2917.7,2916.9,0.002]
[1766589467130,0.9982,2917.5,2916.9,0.002]
[1766589470552,0.9982,2917.8,2916.9,0.002]
[1766589471136,0.9982,2917.7,2916.9,0.002]
[1766589471327,0.9982,2917.7,2916.9,0.72559444]
[1766589471529,0.9982,2917.7,2916.9,0.69131147]
[1766589474262,0.9982,2917.7,2916.1,0.09877552]
[1766589474263,0.9982,2917.5,2916.5,3.88]
[1766589474961,0.9982,2917.5,2916.6,3.42858125]
[1766589475160,0.9982,2917.5,2916.5,7.30869853]
[1766589475365,0.9982,2917.5,2916.6,3.42863526]
[1766589475562,0.9982,2917.5,2916.8,3.42840655]
[1766589475768,0.9982,2917.5,2916.9,0.03428297]
[1766589476968,4.42580059,2917.5,2916.9,0.03428297]
[1766589477141,4.42580059,2917.5,2916.8,0.03428414]
[1766589477534,0.9982,2917.4,2916.5,7.30868965]
[1766589477864,0.9982,2917.4,2916.6,3.46286334]
[1766589478364,0.9982,2917.4,2916.6,3.46284403]
[1766589478562,0.9982,2917.4,2916.6,3.4628797]
[1766589478767,0.9982,2917.4,2916.7,3.42852907]
[1766589478964,0.9982,2917.4,2916.8,3.46269163]
[1766589480290,0.9982,2917.4,2916.8,6.89110633]
[1766589480475,0.9982,2917.8,2916.9,0.837]
[1766589480674,0.9982,2917.8,2917.0,0.03428179]
[1766589481478,4.42545196,2917.8,2917.0,0.837]
[1766589481691,4.42545196,2917.8,2917.0,3.42816916]
[1766589481867,4.42545196,2917.8,2917.0,1.52264887]
[1766589482069,0.9982,2917.8,2917.0,4.95072907]
[1766589482402,0.9982,2917.8,2917.0,8.41319049]
[1766589482580,0.9982,2917.8,2917.0,11.80708833]
[1766589482880,0.001,2918.3,2917.1,0.09877552]
[1766589483070,0.97,2918.2,2917.2,2.37040435]
[1766589483273,0.97,2918.2,2917.3,0.03427827]
[1766589483475,0.97,2918.1,2917.4,3.4277096]
[1766589483673,0.97,2918.1,2917.5,0.03427592]
[1766589483874,0.97,2918.1,2917.0,0.68564887]
[1766589484053,6.8535682,2918.2,2917.1,3.46228219]
[1766589484054,0.97,2917.9,2917.1,3.46228219]
[1766589484459,0.97,2917.9,2917.1,0.03428062]
[1766589484691,0.97,2917.7,2916.7,3.4284616]
[1766589484981,0.97,2917.7,2916.7,3.42853036]
[1766589485185,1.1512,2917.7,2916.7,4.19815108]
[1766589485385,1.1512,2917.7,2916.5,0.002]
[1766589485386,0.97,2917.5,2916.5,0.002]
[1766589485583,0.97,2917.3,2916.5,0.002]
[1766589486977,0.97,2917.3,2916.1,0.03429237]
[1766589487181,0.97,2917.3,2915.3,0.09877552]
[1766589487182,0.97,2917.1,2915.8,3.42954831]
[1766589487489,0.97,2916.7,2915.9,3.46376063]
[1766589488382,0.97,2916.7,2915.9,0.03429472]
[1766589488785,0.97,2916.7,2915.8,3.42951627]
[1766589488974,0.97,2916.7,2915.9,0.03429472]
[1766589489167,0.97,2916.6,2916.5,0.002]
[1766589490994,4.39864979,2916.6,2916.5,0.002]
[1766589491291,0.97,2916.6,2916.5,0.002]
[1766589491466,4.39864979,2916.6,2916.5,0.002]
[1766589492272,0.97,2916.5,2915.9,0.03429472]
[1766589492488,0.97,2916.4,2915.8,0.0342959]
[1766589492712,0.97,2916.4,2915.7,0.002]
[1766589492987,1.00750794,2916.4,2915.3,0.002]
[1766589493188,0.97,2916.2,2915.4,3.43199528]
[1766589493512,0.97,2916.2,2915.5,0.03429943]
[1766589493668,0.97,2916.0,2915.5,0.03429943]
[1766589494185,1.00750794,2915.9,2915.5,0.03429943]
[1766589494374,1.00750794,2915.9,2915.5,3.46416522]
[1766589494697,0.97,2916.2,2915.5,4.15398401]
[1766589495284,0.97,2916.4,2915.5,0.72411822]
[1766589495492,0.97,2916.4,2915.5,3.46422215]
[1766589495493,0.97,2916.3,2915.5,3.46422215]
[1766589496498,0.97,2916.3,2915.5,6.89416555]
[1766589496799,0.97,2916.3,2915.5,6.85986612]
[1766589497683,0.97,2916.3,2915.5,3.42992272]
[1766589497884,0.97,2916.3,2915.6,0.03429825]
[1766589498487,0.97,2916.3,2915.7,6.85941626]
[1766589498689,0.97,2916.3,2915.8,0.0342959]
[1766589499308,1.00430384,2916.2,2915.3,0.002]
[1766589499483,1.00430384,2916.2,2915.0,0.002]
[1766589499686,0.97,2916.0,2914.2,3.43338881]
[1766589499891,0.97,2915.8,2914.2,0.002]
[1766589500099,0.97,2915.6,2914.2,3.43342214]
[1766589500407,0.97,2915.4,2914.3,3.46759268]
[1766589500599,0.97,2915.2,2914.3,3.46759268]
[1766589500796,0.97,2915.0,2914.3,3.46759268]
[1766589500975,1.00430384,2914.9,2914.3,3.46759268]
[1766589501174,1.00430384,2914.9,2914.3,0.03631355]
[1766589501405,1.00430384,2914.9,2914.3,3.43333325]
[1766589501575,1.00430384,2914.9,2914.4,0.03431237]
[1766589502883,0.97,2914.8,2913.8,0.002]
[1766589503088,0.97,2914.6,2913.8,3.43393759]
[1766589503289,0.97,2914.4,2914.0,3.43162417]
[1766589503484,0.97,2914.4,2914.1,3.43158015]
[1766589503684,0.97,2914.4,2914.0,3.4316614]
[1766589503889,0.97,2914.4,2914.0,0.03431708]
[1766589504087,0.03430384,2914.3,2913.8,0.002]
[1766589504293,0.97,2914.2,2913.6,3.43208893]
[1766589504487,0.97,2914.5,2913.8,3.43193533]
[1766589504691,1.00430384,2914.4,2913.9,0.03431826]
[1766589505096,0.97,2914.4,2913.9,6.89789926]
[1766589505311,0.97,2914.4,2913.9,4.12154417]
[1766589505509,0.97,2914.4,2913.9,3.43175424]
[1766589505810,0.03430384,2914.3,2913.9,3.43175424]
[1766589506502,1.00430384,2914.3,2914.0,0.03431708]
[1766589507809,1.00430384,2914.3,2914.0,3.46602399]
[1766589508012,0.843,2914.9,2914.0,3.46602399]
[1766589508226,0.97,2914.8,2914.1,0.3466024]
[1766589508418,0.97,2914.8,2914.2,0.03431473]
[1766589509020,1.00430384,2914.7,2914.3,0.03431355]
[1766589509322,1.00430384,2914.7,2914.2,0.03431473]
[1766589509903,1.00430384,2914.7,2914.2,3.46578496]
[1766589510107,1.00430384,2914.7,2914.2,3.8470237]
[1766589511123,1.00430384,2914.7,2913.3,0.002]
[1766589511327,1.00430384,2914.7,2913.5,3.43221777]
[1766589511328,0.97,2914.6,2913.5,3.43221777]
[1766589511524,0.926,2914.3,2913.6,0.01717532]
[1766589511822,0.926,2914.1,2913.4,0.01717768]
[1766589512023,0.926,2913.9,2913.4,0.01718356]
[1766589512826,0.926,2913.9,2913.4,0.70560741]
[1766589513331,0.926,2914.2,2913.4,0.70560741]
[1766589513525,0.96889489,2914.1,2913.5,3.43229792]
[1766589513734,0.96889489,2914.1,2913.6,0.01718121]
[1766589514239,0.926,2914.1,2913.6,0.01718121]
[1766589514543,0.96889194,2914.3,2913.6,0.78935892]
[1766589514727,0.96889194,2914.3,2913.6,0.01718121]
[1766589515215,0.96889194,2914.3,2913.5,0.01718121]
[1766589515603,0.926,2914.2,2913.4,7.7047864]
[1766589515801,0.926,2914.0,2913.4,7.7047864]
[1766589516433,0.04289783,2913.9,2913.4,4.27237067]
[1766589516736,0.926,2913.9,2913.4,4.27237067]
[1766589516940,0.926,2913.9,2913.5,0.01718534]
[1766589517108,0.926,2913.9,2913.4,4.27237067]
[1766589518042,1.0245993,2913.8,2913.4,0.84]
[1766589518249,1.0245993,2913.8,2913.3,0.002]
[1766589518420,0.9817,2913.7,2913.3,0.002]
[1766589518625,1.02460225,2913.6,2913.3,3.43452671]
[1766589519140,1.02460225,2913.6,2913.3,0.002]
[1766589519317,1.02460225,2913.6,2913.3,3.43446767]
[1766589519844,1.02460225,2913.6,2913.3,3.4345332]
[1766589520221,1.02460225,2913.6,2913.3,0.002]
[1766589522043,1.02460225,2913.6,2913.4,3.43241573]
[1766589522360,1.02460225,2913.6,2913.3,3.45166183]
[1766589524162,0.001,2914.9,2913.4,0.839]
[1766589524323,0.9817,2914.7,2913.4,0.839]
[1766589524522,0.9817,2914.7,2913.5,0.03432297]
[1766589524719,0.9817,2914.5,2913.3,3.43447061]
[1766589524967,0.9817,2914.3,2913.3,3.43447061]
[1766589525168,0.9817,2914.1,2913.3,3.43447061]
[1766589525454,0.9817,2913.9,2913.3,3.43447061]
[1766589525616,1.0245993,2913.8,2913.3,3.43447061]
[1766589525818,1.0245993,2913.8,2913.4,0.42734706]
[1766589527249,1.0245993,2913.8,2913.3,0.002]
[1766589527546,0.9817,2913.7,2913.3,3.43247497]
[1766589527747,0.9817,2913.7,2913.2,0.02576874]
[1766589528049,1.02460225,2913.6,2913.1,0.02777183]
[1766589528420,1.02460225,2913.6,2913.1,3.46054008]
[1766589528623,1.02460225,2913.6,2913.3,0.002]
[1766589530475,0.844,2914.2,2913.3,6.8670671]
[1766589530631,0.9817,2914.1,2913.4,0.03432415]
[1766589530838,0.01713704,2914.0,2913.4,0.87332415]
[1766589531165,0.99883704,2914.0,2913.4,0.03432415]
[1766589531355,0.99883704,2914.0,2913.3,0.87532533]
[1766589531674,0.99883704,2914.0,2913.3,0.03632533]
[1766589531834,0.99883704,2914.0,2913.3,0.002]
[1766589532029,0.9817,2913.9,2913.3,0.002]
[1766589532259,0.9817,2913.7,2913.3,0.002]
[1766589532462,0.01713704,2913.9,2913.3,0.002]
[1766589532663,0.01713704,2914.0,2913.3,0.002]
[1766589532859,0.01713704,2914.0,2913.4,0.77062932]
[1766589533042,0.001,2914.2,2913.4,0.77062932]
[1766589533480,0.001,2914.2,2913.5,0.03432297]
[1766589533686,0.001,2914.2,2913.6,0.839]
[1766589534171,0.001,2914.2,2913.7,0.03432062]
[1766589534775,0.001,2914.2,2913.8,3.43194453]
[1766589534931,0.9817,2914.8,2913.9,0.38094477]
[1766589535135,0.9817,2914.8,2914.0,0.839]
[1766589535336,0.9817,2914.8,2913.9,0.38094477]
[1766589535337,0.9817,2914.8,2914.1,0.839]
[1766589535636,0.9817,2914.8,2913.5,4.27120961]
[1766589535849,0.9817,2914.8,2913.4,0.77062932]
[1766589536048,0.9817,2914.6,2913.3,3.4345113]
[1766589536234,0.9817,2914.6,2913.3,4.2734659]
[1766589536661,0.9817,2914.6,2913.4,3.46673161]
[1766589536864,0.9817,2914.4,2913.5,3.4322709]
[1766589537167,0.9817,2914.2,2913.5,3.4322709]
[1766589538163,0.9817,2914.2,2913.6,0.0343218]
[1766589538363,0.9817,2914.2,2913.7,0.839]
[1766589538566,0.844,2914.7,2913.8,0.03431944]
[1766589538567,0.9817,2914.6,2913.8,0.03431944]
[1766589538936,0.9817,2914.5,2913.7,3.43201033]
[1766589539137,0.9817,2914.4,2913.5,3.43221944]
[1766589539366,0.9817,2914.4,2913.6,0.0343218]
[1766589540184,0.9817,2914.4,2913.6,3.46643037]
[1766589540387,0.9817,2914.4,2913.6,0.0343218]
[1766589540564,0.9817,2914.4,2913.6,3.46644048]
[1766589540748,0.9817,2914.4,2913.8,3.43191723]
[1766589541090,0.9817,2914.4,2913.9,0.03431826]
[1766589541292,0.9817,2914.4,2913.9,0.87331826]
[1766589541595,0.9396,2914.3,2913.6,4.27113233]
[1766589541766,0.9396,2914.3,2913.7,0.03432062]
[1766589542149,0.9396,2914.3,2913.7,3.46634354]
[1766589542450,0.9396,2914.3,2913.7,3.46629794]
[1766589542873,0.9396,2914.3,2913.7,4.24003793]
[1766589544380,0.9396,2914.3,2913.7,0.80806061]
[1766589544587,0.9396,2914.3,2913.7,3.4663791]
[1766589545116,0.9396,2914.3,2913.7,6.89844142]
[1766589545391,0.9396,2914.7,2913.7,10.29618312]
[1766589546148,0.001,2914.9,2913.7,10.29618312]
[1766589546149,0.001,2915.4,2914.6,5.91628525]
[1766589546350,0.9396,2915.7,2914.7,1.43062852]
[1766589546674,0.9406,2916.0,2914.8,0.03430767]
[1766589547863,0.9406,2916.0,2914.9,6.86129884]
[1766589548073,0.9406,2916.0,2915.0,0.03430531]
[1766589548386,0.9396,2915.9,2915.1,0.839]
[1766589548554,0.9396,2915.9,2915.2,0.03430296]
[1766589549860,0.9406,2916.7,2915.3,10.29053613]
[1766589550075,0.9396,2916.6,2915.4,0.03430061]
[1766589550279,0.9396,2916.4,2915.2,6.86054603]
[1766589550483,0.9396,2916.4,2915.0,1.03263354]
[1766589550662,0.9396,2916.4,2915.2,3.43023007]
[1766589550975,0.9396,2916.4,2915.3,0.03430178]
[1766589551296,0.9396,2916.4,2915.4,0.839]
[1766589552361,0.9396,2916.2,2915.4,0.839]
[1766589552557,0.9396,2916.2,2915.5,0.03429943]
[1766589552757,1.37646025,2916.1,2915.5,0.03429943]
[1766589552992,0.9396,2916.0,2915.5,0.03429943]
[1766589553373,0.9396,2916.0,2914.0,3.84730013]
[1766589553374,0.9396,2916.0,2914.9,3.43057879]
[1766589553583,0.9396,2916.0,2915.0,0.87330531]
[1766589554302,0.9396,2916.0,2915.1,3.43040204]
[1766589554595,0.9396,2915.8,2915.0,4.3037982]
[1766589554767,0.9396,2915.6,2915.0,4.3037982]
[1766589555177,0.9396,2915.6,2915.0,0.87330531]
[1766589555383,0.9396,2915.6,2915.1,0.839]
[1766589556699,1.37646025,2916.1,2915.2,3.43024059]
[1766589556901,0.9396,2916.1,2915.3,0.03430178]
[1766589557597,0.9396,2916.0,2915.4,0.839]
[1766589557901,0.9396,2916.0,2915.5,0.03429943]
[1766589558200,0.9396,2916.0,2915.6,0.839]
[1766589560073,0.9396,2916.0,2915.6,4.26881298]
[1766589560387,0.9396,2916.3,2915.6,4.26881298]
[1766589560589,0.001,2916.4,2915.7,0.03429708]
[1766589561097,0.001,2916.4,2915.8,6.859181]
[1766589561292,0.001,2916.4,2915.9,0.03429472]
[1766589562301,0.001,2916.4,2916.0,0.84]
[1766589562495,0.001,2916.4,2916.1,0.03429237]
[1766589563202,0.9406,2916.7,2916.1,0.03429237]
[1766589563404,0.43690388,2916.6,2916.1,0.03429237]
[1766589564297,0.9406,2916.7,2916.1,0.03429237]
[1766589564608,0.9406,2916.7,2916.1,3.46351946]
[1766589565282,0.9406,2916.7,2916.1,6.89275714]
[1766589565590,0.9406,2917.3,2916.1,10.28770245]
[1766589565811,4.36844902,2917.3,2916.2,1.11277024]
[1766589566611,0.001,2917.3,2916.3,0.03429002]
[1766589566814,0.001,2917.3,2916.4,0.84]
[1766589567005,0.001,2917.3,2916.5,0.03428767]
[1766589567406,0.9396,2917.2,2916.6,0.84]
[1766589567718,1.37644271,2917.1,2916.6,0.84]
[1766589567915,0.43684271,2917.1,2916.6,0.84]
[1766589568083,0.001,2917.3,2916.7,0.03428532]
[1766589569007,0.9396,2917.2,2916.6,0.84]
[1766589569408,0.9396,2917.2,2916.7,3.42853224]
[1766589569813,0.9396,2917.2,2916.6,4.26862761]
[1766589570315,0.9396,2917.2,2916.6,0.84]
[1766589570491,0.9396,2917.2,2916.6,4.26864652]
[1766589571093,0.9396,2917.2,2916.5,3.42876574]
[1766589571094,4.36755797,2917.2,2916.7,0.84]
[1766589571304,1.71923012,2917.2,2916.7,0.84]
[1766589571702,0.9017,2917.1,2915.9,0.002]
[1766589571907,0.9017,2917.1,2916.2,3.42905598]
[1766589572088,0.9017,2917.1,2916.1,3.4291927]
[1766589572293,0.9017,2916.9,2916.2,0.84]
[1766589572494,0.9017,2916.9,2916.2,4.26906568]
[1766589572987,0.9017,2916.9,2916.3,0.03429002]
[1766589573211,3.42796242,2917.2,2916.3,0.03429002]
[1766589573522,4.32966242,2917.2,2916.4,3.42887137]
[1766589573701,4.32966242,2917.2,2916.3,0.03429002]
[1766589573702,0.9017,2916.9,2916.5,0.84]
[1766589573902,0.9017,2916.9,2916.2,3.42909255]
[1766589574097,0.9017,2916.9,2916.3,0.84]
[1766589574313,0.9017,2916.9,2916.4,0.03428884]
[1766589575110,0.9017,2916.9,2916.4,0.84]
[1766589576022,0.9017,2916.8,2916.4,0.84]
[1766589576398,0.9017,2916.8,2916.1,3.42920336]
[1766589576724,0.9017,2916.8,2916.2,0.84]
[1766589577521,0.9017,2916.8,2916.1,3.42920336]
[1766589577522,0.9027,2916.8,2916.3,0.84]
[1766589577705,0.9027,2916.8,2916.3,0.87429002]
[1766589577901,0.001,2916.8,2916.3,4.30322787]
[1766589578814,0.001,2916.8,2916.3,0.87429002]
[1766589579124,0.9399,2916.7,2916.3,0.87429002]
[1766589579335,0.001,2917.3,2916.3,1.30462932]
[1766589579523,0.001,2917.3,2916.4,6.85776984]
[1766589579695,0.001,2917.3,2916.5,0.03428767]
[1766589579900,0.001,2917.3,2916.6,3.42864979]
[1766589580095,0.001,2917.3,2916.7,0.87428532]
[1766589580322,0.9409,2917.3,2916.7,0.84]
[1766589581225,3.42890852,2917.3,2916.7,0.84]
[1766589581430,0.9399,2917.2,2916.7,0.84]
[1766589582437,0.9399,2917.2,2916.6,0.84]
[1766589582603,0.9399,2917.2,2916.2,0.0342912]
[1766589582804,0.9399,2917.2,2916.3,4.26891519]
[1766589582805,0.9399,2917.1,2916.3,4.26891519]
[1766589583036,0.9399,2917.1,2916.4,0.03428884]
[1766589583414,0.9399,2917.0,2916.4,0.03428884]
[1766589584808,0.9399,2917.0,2916.3,0.84]
[1766589585021,0.9399,2917.0,2916.4,0.03428884]
[1766589585218,0.9399,2916.9,2916.4,0.03428884]
[1766589585626,0.001,2917.3,2916.4,3.46314838]
[1766589585627,0.9399,2917.2,2916.4,3.46314838]
[1766589586547,0.9399,2917.2,2916.4,0.87428884]
[1766589586721,0.9399,2916.9,2916.4,0.84]
[1766589587051,0.001,2917.0,2916.5,0.03428767]
[1766589587203,0.001,2917.0,2916.4,7.69776897]
[1766589587204,0.001,2917.3,2916.6,0.80749215]
[1766589587403,3.42852985,2917.6,2916.6,0.80749215]
[1766589587404,0.001,2917.6,2916.7,6.8913498]
[1766589587638,0.001,2917.9,2916.8,0.87428414]
[1766589587825,0.001,2918.1,2916.8,0.87428414]
[1766589588029,0.001,2918.1,2916.9,0.03428297]
[1766589588533,0.001,2918.3,2916.9,0.13305849]
[1766589588833,0.001,2918.3,2916.9,0.54858174]
[1766589589241,0.9409,2918.3,2916.9,0.44980622]
[1766589589545,0.9409,2918.3,2917.1,6.85612422]
[1766589589746,0.9409,2918.3,2917.2,0.80389186]
[1766589591206,0.9399,2918.2,2917.2,0.80389186]
[1766589591449,0.9399,2918.2,2917.3,0.84]
[1766589591744,0.9399,2918.1,2917.3,4.26777124]
[1766589591906,0.9399,2918.1,2917.4,0.84995935]
[1766589592533,0.9399,2918.1,2917.5,0.03427592]
[1766589592744,0.001,2918.3,2917.5,0.03427592]
[1766589592955,0.9409,2918.3,2917.5,0.03427592]
[1766589593337,4.36756009,2918.3,2917.5,0.03427592]
[1766589593643,3.42679451,2918.2,2917.6,0.84]
[1766589593948,0.9399,2918.1,2917.5,0.84]